bitfinex-derivatives/quotes_ETHF0:USTF0_20250918
["timestamp","ask_amount","ask_price","bid_price","bid_amount"]
[1758219122509,0.49,4612.5,4612.4,3.7125]
[1758219123409,0.803,4612.5,4612.4,3.2094]
[1758219123609,0.803,4612.5,4612.4,3.4157]
[1758219123910,0.803,4612.5,4612.4,3.1967]
[1758219124208,0.803,4612.5,4612.4,2.9904]
[1758219124412,0.803,4612.5,4612.2,0.219]
[1758219125412,0.2905,4611.9,4611.3,3.513]
[1758219125607,0.6902,4611.9,4611.8,0.3953]
[1758219125805,0.6902,4611.9,4611.8,0.6924]
[1758219126012,0.90275491,4611.9,4611.8,0.6924]
[1758219126202,0.6902,4611.9,4611.8,0.6924]
[1758219126601,0.90279546,4611.9,4611.8,0.6924]
[1758219126809,0.70139546,4611.9,4611.8,0.6924]
[1758219127009,0.4888,4611.9,4611.8,0.6924]
[1758219128213,0.70150193,4611.9,4611.8,0.6924]
[1758219129709,0.90290193,4611.9,4611.8,0.6924]
[1758219131214,0.90290193,4611.9,4611.8,0.1953]
[1758219131414,0.90290193,4611.9,4611.8,0.3953]
[1758219131714,0.90290193,4611.9,4611.8,0.6924]
[1758219132016,0.90290193,4611.9,4611.8,0.3953]
[1758219132810,0.21270193,4611.9,4611.8,0.6924]
[1758219133211,0.71370193,4611.9,4611.8,0.6924]
[1758219133416,0.91510193,4611.9,4611.8,0.3953]
[1758219135015,0.91476723,4611.9,4611.8,0.3953]
[1758219135514,0.91476723,4611.9,4611.4,0.219]
[1758219135711,0.8177,4611.5,4611.4,0.4143]
[1758219135907,1.03006723,4611.5,4611.4,0.4143]
[1758219136215,1.03006723,4611.5,4611.4,0.6143]
[1758219136420,1.03006723,4611.5,4611.4,0.9114]
[1758219137318,1.03006723,4611.5,4611.4,0.4143]
[1758219137518,0.72736723,4611.5,4610.8,3.5049]
[1758219137721,0.7024,4611.2,4611.1,0.6143]
[1758219138012,0.7024,4611.2,4611.1,0.9114]
[1758219138013,0.91476723,4611.2,4611.1,0.9114]
[1758219138221,0.91476723,4611.2,4611.1,0.6924]
[1758219138421,0.91476723,4611.2,4611.1,0.9114]
[1758219138814,0.21236723,4611.2,4611.1,0.9114]
[1758219139014,0.21236723,4611.4,4611.2,0.2971]
[1758219139219,0.3027,4611.8,4611.7,0.6924]
[1758219139521,0.21249744,4611.8,4611.7,0.6924]
[1758219141012,0.21255579,4611.8,4611.7,0.3953]
[1758219141623,0.91495579,4611.8,4611.7,0.6143]
[1758219142122,0.71355579,4611.8,4611.7,0.9114]
[1758219143724,0.91495579,4611.8,4611.7,0.6143]
[1758219144423,0.91495579,4611.8,4611.7,0.9114]
[1758219144919,0.71355579,4611.8,4611.7,0.9114]
[1758219145119,0.21255579,4611.8,4611.7,0.9114]
[1758219145618,0.41085579,4611.8,4611.7,0.9114]
[1758219145824,0.71355579,4611.8,4611.7,0.9114]
[1758219148025,0.91495579,4611.8,4611.7,0.4143]
[1758219149226,0.91495579,4611.8,4611.7,0.6143]
[1758219149616,0.1153,4611.5,4611.3,3.2078]
[1758219149815,0.91495579,4611.4,4611.3,3.2078]
[1758219152124,0.91495579,4611.4,4611.3,3.4031]
[1758219154232,0.91495579,4611.4,4611.3,3.2078]
[1758219154533,0.3997,4610.8,4610.7,3.2078]
[1758219154832,0.91495579,4610.8,4610.7,3.2078]
[1758219155232,0.91495579,4610.8,4610.7,3.4031]
[1758219156231,0.91495579,4610.8,4610.7,3.2078]
[1758219157334,0.8091,4610.5,4610.4,0.219]
[1758219157626,0.72525579,4610.5,4610.2,3.2078]
[1758219157831,0.72525579,4610.5,4610.3,0.1955]
[1758219157832,0.90005579,4610.4,4610.3,0.1955]
[1758219158633,0.2964,4610.3,4610.2,3.2078]
[1758219158827,0.90005579,4610.3,4610.2,3.2078]
[1758219159731,0.90005579,4610.3,4609.6,0.3126]
[1758219159732,0.1216,4610.0,4609.6,0.3126]
[1758219159929,0.6875,4609.7,4609.6,0.3984]
[1758219160133,0.90005579,4609.7,4609.6,0.6174]
[1758219160937,0.90005579,4609.7,4609.6,0.3984]
[1758219163234,0.70645579,4609.7,4609.6,0.711]
[1758219163424,0.50895579,4609.7,4609.6,0.711]
[1758219163633,0.90005579,4609.7,4609.6,0.1955]
[1758219163832,0.90005579,4609.7,4609.6,0.711]
[1758219164641,0.90005579,4609.7,4609.6,0.1955]
[1758219164840,0.90005579,4609.7,4609.6,0.3984]
[1758219166138,0.2964,4609.6,4609.5,3.2078]
[1758219166338,0.90005579,4609.6,4609.5,3.2078]
[1758219166737,0.90005579,4609.6,4609.5,3.4033]
[1758219166934,0.90005579,4609.6,4609.0,3.2078]
[1758219166935,0.6875,4609.1,4609.0,3.2078]
[1758219167134,0.90005579,4609.1,4609.0,3.2078]
[1758219167840,0.90005579,4609.1,4609.0,3.6062]
[1758219168040,0.90005579,4609.1,4609.0,3.9188]
[1758219168344,0.90005579,4609.1,4609.0,3.6062]
[1758219169642,0.90005579,4609.1,4609.0,3.4033]
[1758219170340,0.1216,4609.0,4608.8,0.2406]
[1758219170544,0.90005579,4608.9,4608.8,0.0216]
[1758219173247,0.3152,4608.5,4608.4,0.3984]
[1758219173544,0.72525579,4608.5,4608.4,0.711]
[1758219173746,1.02165579,4608.5,4608.4,0.711]
[1758219174247,1.02165579,4608.5,4608.0,0.219]
[1758219174540,0.2964,4608.5,4608.4,0.711]
[1758219174745,0.21266434,4608.5,4608.4,3.9123]
[1758219174942,0.3134,4609.4,4609.1,0.3962]
[1758219175141,0.52607098,4609.3,4609.2,0.7023]
[1758219175348,0.93297098,4609.3,4609.2,0.7023]
[1758219175547,0.93297098,4609.3,4609.2,0.3962]
[1758219175739,0.52607098,4609.3,4609.2,0.7023]
[1758219176044,0.3134,4609.9,4609.8,0.1937]
[1758219176245,0.7203,4609.9,4609.8,0.3962]
[1758219179254,0.7203,4609.9,4609.8,0.7023]
[1758219179953,0.7203,4609.9,4609.8,0.3962]
[1758219180453,0.3134,4609.9,4609.8,0.7023]
[1758219180749,0.3134,4609.9,4609.6,0.0216]
[1758219180750,0.93348295,4609.9,4609.6,0.0216]
[1758219180953,0.7203,4609.7,4609.6,0.0216]
[1758219181149,0.2024,4608.8,4608.7,0.9213]
[1758219181356,0.3134,4608.8,4608.7,0.9213]
[1758219181544,0.5158,4609.4,4609.3,0.3962]
[1758219181749,0.7203,4609.4,4609.3,0.3962]
[1758219182452,0.7203,4609.4,4609.3,0.2025]
[1758219182958,0.7203,4609.4,4609.3,0.3962]
[1758219183456,0.7203,4609.4,4609.3,0.7023]
[1758219183860,0.7203,4609.4,4609.3,0.3962]
[1758219185158,0.9338632,4609.4,4609.3,0.3962]
[1758219185760,0.9338632,4609.4,4608.7,0.219]
[1758219185954,0.3015,4609.3,4608.7,0.5187]
[1758219186156,0.5069,4608.8,4608.7,0.9208]
[1758219186364,0.5069,4608.8,4608.7,0.7018]
[1758219186658,0.7106,4608.8,4608.7,0.7018]
[1758219189160,0.5069,4608.8,4608.7,0.7018]
[1758219189763,0.3015,4608.8,4608.7,0.7018]
[1758219190464,0.7106,4608.8,4608.7,0.6211]
[1758219191054,0.7106,4608.8,4608.7,0.9208]
[1758219192063,0.5069,4608.8,4608.7,0.9208]
[1758219192257,0.3015,4608.8,4608.7,0.9208]
[1758219193063,0.7106,4608.8,4608.7,0.6211]
[1758219193862,0.7106,4608.8,4608.7,0.9208]
[1758219194161,0.1222,4609.5,4608.8,0.2997]
[1758219194361,0.92460953,4609.4,4609.3,0.1976]
[1758219194665,0.72090953,4609.4,4609.3,0.7018]
[1758219195866,0.51550953,4609.4,4609.3,0.7018]
[1758219196065,0.72090953,4609.4,4609.3,0.7018]
[1758219196469,0.21400953,4609.4,4609.3,0.7018]
[1758219196670,0.3015,4610.1,4609.4,0.2997]
[1758219196864,0.51550469,4610.0,4609.9,3.2078]
[1758219197069,0.72090469,4610.0,4609.9,3.8289]
[1758219197268,1.04540469,4610.0,4609.9,3.8289]
[1758219199666,1.04540469,4610.0,4609.9,0.6211]
[1758219200166,0.8314,4610.0,4609.9,0.6211]
[1758219200367,0.8314,4610.0,4609.9,0.9208]
[1758219203568,0.5069,4610.0,4609.9,0.9208]
[1758219204175,0.72239934,4610.0,4609.9,0.9208]
[1758219205270,3.33,4610.5,4609.9,4.1286]
[1758219205470,0.51699999,4610.4,4610.3,0.7018]
[1758219205774,0.72239999,4610.4,4610.3,0.7018]
[1758219206575,0.21549999,4610.4,4610.3,0.7018]
[1758219206775,0.72239999,4610.4,4610.3,0.7018]
[1758219207276,0.5069,4610.4,4610.3,0.7018]
[1758219207672,0.1208,4611.0,4610.8,0.4021]
[1758219207880,0.21545655,4610.9,4610.8,0.7018]
[1758219208174,0.51695655,4610.9,4610.8,0.7018]
[1758219208580,0.72235655,4610.9,4610.8,0.7018]
[1758219208781,0.92605655,4610.9,4610.8,0.4021]
[1758219208983,0.92605655,4610.9,4610.8,0.1976]
[1758219209174,0.7106,4610.9,4610.7,0.219]
[1758219209783,0.7106,4610.9,4610.8,0.1976]
[1758219211084,0.7106,4610.9,4610.8,0.4021]
[1758219211582,0.7106,4610.9,4610.8,0.7018]
[1758219212783,0.7106,4610.9,4610.8,0.4021]
[1758219213282,0.1208,4611.5,4610.8,0.7018]
[1758219213587,0.5069,4610.9,4610.8,0.7018]
[1758219213786,0.7106,4610.9,4610.8,0.7018]
[1758219216082,0.92575742,4610.9,4610.8,0.7018]
[1758219217284,0.92575742,4610.9,4610.8,0.4021]
[1758219220489,0.92575742,4610.9,4610.8,0.1976]
[1758219220689,0.92575742,4610.9,4610.7,0.219]
[1758219220989,0.91335742,4610.8,4610.7,0.219]
[1758219221291,0.91335742,4610.8,4610.7,0.4253]
[1758219221594,0.91335742,4610.8,4610.7,0.9338]
[1758219221791,0.1208,4611.5,4610.7,4.84168]
[1758219221984,0.50463725,4611.4,4611.3,0.7148]
[1758219222184,0.70713725,4611.4,4611.3,0.9338]
[1758219222688,0.2894,4611.7,4611.3,0.9338]
[1758219222887,0.21522475,4611.6,4611.5,0.8243]
[1758219223188,0.21519136,4611.6,4611.5,0.8243]
[1758219223893,0.50459136,4611.6,4611.5,0.7148]
[1758219224094,0.70709136,4611.6,4611.5,0.7148]
[1758219225290,0.21519136,4611.6,4611.5,0.8243]
[1758219225493,0.2894,4612.4,4611.6,0.309]
[1758219225683,0.4919,4612.0,4611.9,3.9226]
[1758219225882,0.5045826,4612.0,4611.9,3.9226]
[1758219226092,0.4919,4612.0,4611.9,3.9226]
[1758219227597,0.6193,4612.0,4611.9,3.9226]
[1758219227996,0.6193,4612.0,4611.9,4.1416]
[1758219228496,0.4919,4612.0,4611.9,4.1416]
[1758219228693,0.3233,4612.5,4612.4,0.7148]
[1758219229193,0.819,4612.5,4612.4,0.7148]
[1758219230095,0.819,4612.5,4612.4,0.4058]
[1758219231296,0.819,4612.5,4612.3,0.219]
[1758219231492,0.819,4612.5,4612.4,0.2063]
[1758219232096,0.819,4612.5,4612.4,0.7148]
[1758219232698,0.2894,4612.9,4612.4,3.6136]
[1758219232894,0.2894,4612.7,4612.6,0.1995]
[1758219233099,0.4919,4612.7,4612.6,0.7148]
[1758219233394,0.6982,4612.7,4612.6,0.4058]
[1758219234598,0.2894,4612.7,4612.6,0.915]
[1758219234899,0.3094,4613.0,4612.9,0.6975]
[1758219235097,0.3094,4613.0,4612.9,3.9053]
[1758219235292,0.5072,4613.0,4612.9,4.1243]
[1758219235494,0.8288,4613.0,4612.9,4.1243]
[1758219235699,0.8288,4613.0,4612.9,3.8341]
[1758219235891,0.8288,4613.0,4612.9,4.1243]
[1758219236996,0.8288,4613.0,4612.9,3.2078]
[1758219237300,0.8288,4612.5,4612.4,3.2078]
[1758219241904,1.04372305,4612.5,4611.9,3.2294]
[1758219242201,0.8288,4612.0,4611.9,3.4294]
[1758219242405,0.8288,4612.0,4611.9,3.6484]
[1758219242704,0.6316,4612.0,4611.9,4.1243]
[1758219242896,0.8288,4612.0,4611.9,3.8341]
[1758219243202,0.8288,4612.0,4611.9,4.1243]
[1758219244102,0.8288,4612.0,4611.9,3.8341]
[1758219244798,0.8288,4612.0,4611.9,4.1243]
[1758219244998,0.5072,4612.0,4611.9,4.1243]
[1758219245904,0.8351,4612.0,4611.9,3.8341]
[1758219246205,0.8351,4612.0,4611.9,3.6268]
[1758219247704,0.8351,4612.0,4611.9,3.2078]
[1758219247904,1.05028651,4612.0,4611.9,3.2078]
[1758219248306,1.05028651,4612.0,4611.9,3.6079]
[1758219248506,1.05028651,4612.0,4611.9,3.9093]
[1758219249405,1.05028651,4612.0,4611.9,3.6079]
[1758219249704,1.05028651,4612.0,4611.9,3.9093]
[1758219250102,1.05028651,4612.0,4611.9,3.6079]
[1758219250501,1.05028651,4612.0,4611.9,3.2078]
[1758219251308,1.05028651,4612.0,4611.9,3.9093]
[1758219251804,1.05028651,4612.0,4611.9,3.6079]
[1758219251998,1.05028651,4612.0,4611.9,3.9093]
[1758219253008,1.05028651,4612.0,4611.9,3.6079]
[1758219253405,1.05028651,4612.0,4611.9,3.9093]
[1758219253605,1.05028651,4612.0,4611.9,3.6079]
[1758219254108,1.05028651,4612.0,4611.9,3.9093]
[1758219256311,1.05028651,4612.0,4611.9,3.6079]
[1758219258016,1.05028651,4612.0,4611.9,3.9093]
[1758219258212,0.92498651,4612.0,4611.9,3.9093]
[1758219260213,1.05028651,4612.0,4611.9,3.9093]
[1758219261615,1.05028651,4612.0,4611.9,3.6079]
[1758219262115,1.05028651,4612.0,4611.9,0.4001]
[1758219262616,1.05028651,4612.0,4611.6,0.0216]
[1758219262817,0.6957,4611.7,4611.6,0.0216]
[1758219263012,0.91088651,4611.7,4611.6,0.0216]
[1758219264414,0.62308651,4611.7,4611.6,0.2036]
[1758219264815,0.62308651,4611.7,4611.3,0.3014]
[1758219265115,0.6957,4611.4,4611.3,0.4001]
[1758219265318,0.91088651,4611.4,4611.3,0.7015]
[1758219268818,0.21518651,4611.4,4611.3,0.7015]
[1758219269017,0.2878,4611.7,4611.3,0.6191]
[1758219269215,0.2878,4611.9,4611.8,0.4001]
[1758219269414,0.21591457,4611.9,4611.8,0.7015]
[1758219270118,0.2878,4612.6,4611.9,0.3014]
[1758219270318,3.2078,4612.9,4612.6,0.3014]
[1758219270514,0.4931,4612.7,4612.0,0.286]
[1758219270820,0.4931,4612.7,4612.6,0.7015]
[1758219271020,0.91167887,4612.7,4612.6,0.7015]
[1758219271623,0.91167887,4612.7,4612.6,0.4001]
[1758219273220,0.91167887,4612.7,4612.0,0.219]
[1758219273526,0.6957,4612.1,4612.0,0.9205]
[1758219273725,0.2878,4612.1,4612.0,0.9205]
[1758219274436,0.2878,4612.4,4612.3,0.4001]
[1758219274628,0.50379184,4612.4,4612.3,0.7015]
[1758219274927,0.70909184,4612.4,4612.3,0.7015]
[1758219275427,0.91169184,4612.4,4612.3,0.7015]
[1758219275930,0.21599184,4612.4,4612.3,3.9093]
[1758219276428,0.73699184,4612.4,4612.3,4.12611]
[1758219276926,0.73699184,4612.4,4612.3,3.9093]
[1758219277329,0.73699184,4612.4,4612.3,4.1283]
[1758219278325,0.53009184,4612.4,4612.3,4.1283]
[1758219278529,0.93709184,4612.4,4612.3,4.1283]
[1758219279129,0.21599184,4612.4,4612.3,4.1283]
[1758219279632,0.21599184,4612.4,4612.3,4.1455]
[1758219283831,0.3141,4613.0,4612.3,3.8345]
[1758219284131,0.52996388,4612.9,4612.8,0.7187]
[1758219284534,0.1186,4613.5,4612.8,3.6155]
[1758219284831,0.93693421,4613.4,4613.3,0.4077]
[1758219285428,0.93693421,4613.4,4613.3,0.7187]
[1758219285623,0.21583421,4613.4,4613.3,0.9377]
[1758219287328,0.3141,4613.7,4613.3,4.1455]
[1758219287530,0.21559422,4613.6,4613.5,0.4077]
[1758219287727,0.21559422,4613.6,4613.5,0.7187]
[1758219288233,0.21559422,4613.6,4613.5,0.837]
[1758219288533,3.5219,4614.1,4614.0,0.7187]
[1758219288534,0.521,4614.1,4614.0,0.7187]
[1758219288834,0.93661667,4614.1,4614.0,0.4077]
[1758219289032,0.407,4613.7,4613.6,0.4171]
[1758219289233,0.7211,4613.7,4613.6,0.6267]
[1758219289532,0.7211,4613.7,4613.6,0.9377]
[1758219292737,0.521,4613.7,4613.6,0.9377]
[1758219292936,0.3141,4614.0,4613.7,0.311]
[1758219293136,0.3141,4614.0,4613.9,3.9265]
[1758219293429,0.521,4614.0,4613.9,3.9265]
[1758219293637,0.3141,4614.0,4613.9,3.9265]
[1758219294139,0.3011,4614.4,4613.9,3.6155]
[1758219294331,0.8274,4614.5,4614.4,0.7136]
[1758219294532,1.04020305,4614.5,4614.4,0.7136]
[1758219294835,1.04020305,4614.5,4614.4,0.4017]
[1758219295327,1.04020305,4614.5,4614.0,0.3119]
[1758219295531,0.8274,4614.5,4614.0,0.3119]
[1758219295936,0.8274,4614.5,4613.9,3.4268]
[1758219296141,0.3201,4614.0,4613.9,3.8285]
[1758219296331,0.5022,4614.0,4613.9,4.1404]
[1758219296535,0.3011,4614.0,4613.9,4.1404]
[1758219296946,0.1186,4614.5,4613.9,3.8285]
[1758219297139,0.7088,4614.4,4614.3,0.4017]
[1758219298233,0.9216659,4614.4,4614.3,0.4017]
[1758219298434,0.7088,4614.4,4614.3,0.7136]
[1758219300040,0.3011,4614.9,4614.3,0.7136]
[1758219300239,0.1186,4615.0,4614.6,0.1973]
[1758219300240,0.3011,4614.7,4614.6,0.1973]
[1758219300541,0.92166474,4614.7,4614.6,0.1973]
[1758219301340,0.92166474,4614.7,4614.6,0.7136]
[1758219301540,0.3011,4614.7,4614.6,0.7136]
[1758219302341,0.3011,4614.9,4614.8,0.4017]
[1758219302543,0.3011,4614.9,4614.8,0.7136]
[1758219302942,0.5022,4614.9,4614.8,0.7136]
[1758219303342,0.3011,4614.9,4614.8,0.7136]
[1758219303543,0.5022,4614.9,4614.8,0.7136]
[1758219303842,0.7088,4614.9,4614.8,0.4017]
[1758219304234,0.7088,4614.9,4614.8,0.7136]
[1758219306242,0.92154159,4614.9,4614.8,0.7136]
[1758219306442,0.71494159,4614.9,4614.8,0.7136]
[1758219306940,0.5022,4614.9,4614.8,0.7136]
[1758219307539,0.3011,4614.9,4614.8,0.7136]
[1758219308540,0.5011,4614.9,4614.8,0.7136]
[1758219308739,0.7068,4614.9,4614.8,0.1973]
[1758219308937,0.7068,4614.9,4614.6,0.219]
[1758219309337,0.7068,4614.9,4614.8,0.2105]
[1758219309638,0.7068,4614.9,4614.8,0.7093]
[1758219309639,0.91956982,4614.9,4614.8,0.7093]
[1758219309838,0.71386982,4614.9,4614.8,0.7093]
[1758219310142,0.91956982,4614.9,4614.8,0.4173]
[1758219310942,0.91956982,4614.9,4614.6,0.219]
[1758219311145,0.7068,4614.9,4614.6,0.219]
[1758219311440,0.5221,4614.5,4614.4,3.2078]
[1758219311634,0.8238,4614.5,4614.4,3.4258]
[1758219311837,0.8238,4614.5,4614.4,3.6363]
[1758219312645,0.8238,4614.5,4614.4,3.2078]
[1758219312941,1.03674999,4614.5,4613.9,3.2078]
[1758219313148,0.8238,4614.0,4613.9,3.2078]
[1758219313442,1.03674999,4614.0,4613.9,3.8431]
[1758219313636,1.03674999,4614.0,4613.9,4.1351]
[1758219313840,1.03674999,4614.0,4613.9,3.9171]
[1758219314040,1.03674999,4614.0,4613.9,4.1351]
[1758219314246,0.92034999,4614.0,4613.9,4.1351]
[1758219314446,0.3017,4614.6,4614.5,0.7093]
[1758219314748,0.51487428,4614.6,4614.5,4.1351]
[1758219315342,0.21317428,4614.6,4614.5,4.1351]
[1758219315542,0.3017,4615.2,4614.5,3.9614]
[1758219315742,0.3017,4615.2,4615.1,3.9171]
[1758219315942,0.51491672,4615.2,4615.1,4.1351]
[1758219316145,0.5017,4615.2,4615.1,4.1351]
[1758219317147,0.7074,4615.2,4615.1,3.8431]
[1758219317746,0.7074,4615.2,4615.1,4.1351]
[1758219319449,0.7074,4615.2,4615.1,3.6363]
[1758219319649,0.92064278,4615.2,4615.1,0.218]
[1758219319847,0.7074,4615.2,4615.1,0.218]
[1758219320043,0.7074,4615.2,4615.1,0.4285]
[1758219320343,0.92066107,4615.2,4615.1,0.4285]
[1758219320743,0.5221,4615.0,4614.9,0.218]
[1758219320942,0.8238,4615.0,4614.9,0.218]
[1758219321146,1.0370983,4615.0,4614.9,0.218]
[1758219321343,1.0370983,4615.0,4614.9,0.4285]
[1758219321549,0.7149983,4615.0,4614.9,0.9273]
[1758219321750,0.3017,4615.0,4614.9,0.9273]
[1758219321948,0.7074,4615.4,4615.3,0.4173]
[1758219322149,0.92243209,4615.4,4615.3,0.4173]
[1758219325151,0.92243209,4615.4,4615.3,0.2105]
[1758219326349,0.92243209,4615.4,4615.3,0.7093]
[1758219326552,0.92243209,4615.4,4615.3,0.4173]
[1758219326743,0.92243209,4615.4,4615.3,0.7093]
[1758219327053,0.1164,4616.0,4615.3,0.7093]
[1758219327054,0.3017,4615.9,4615.4,0.292]
[1758219327252,0.5017,4615.9,4615.8,3.6251]
[1758219327454,0.92249557,4615.9,4615.8,3.9171]
[1758219327648,0.92249557,4615.9,4615.8,3.6251]
[1758219327952,0.92249492,4615.9,4615.8,3.9171]
[1758219328453,0.92249492,4615.9,4615.8,3.4183]
[1758219328756,0.92249492,4615.9,4615.8,3.6251]
[1758219330659,0.92249492,4615.9,4615.8,3.4183]
[1758219331157,0.92249492,4615.9,4615.8,3.9171]
[1758219331158,0.71679492,4615.9,4615.8,3.9171]
[1758219331355,0.92249492,4615.9,4615.8,3.4183]
[1758219332254,0.62079492,4615.9,4615.2,3.2078]
[1758219332557,0.7074,4615.3,4615.2,0.2105]
[1758219332747,0.7074,4615.3,4615.2,0.4285]
[1758219333453,0.21504005,4615.3,4614.9,0.7093]
[1758219333654,0.4057,4615.2,4615.1,0.6353]
[1758219334060,0.7074,4615.2,4615.1,0.6353]
[1758219334466,0.7074,4615.2,4615.1,0.4173]
[1758219334655,0.7074,4615.2,4615.1,0.6353]
[1758219335057,0.7074,4615.2,4614.7,3.2294]
[1758219335058,0.1164,4615.0,4614.7,3.2294]
[1758219335356,0.7074,4614.8,4614.7,0.0216]
[1758219335755,0.7074,4614.8,4614.6,0.218]
[1758219336661,0.7103,4614.8,4614.7,0.4148]
[1758219336860,0.7103,4614.8,4614.7,0.734]
[1758219337161,0.7103,4614.8,4614.6,0.218]
[1758219337656,0.1164,4615.0,4614.2,3.2078]
[1758219337657,0.5305,4614.5,4614.2,3.2078]
[1758219337862,0.7098,4614.4,4614.3,0.219]
[1758219338964,0.7098,4614.4,4614.3,0.4213]
[1758219340458,0.7098,4614.4,4614.3,0.6256]
[1758219340663,0.7098,4614.9,4614.8,0.2023]
[1758219340962,0.92482452,4614.9,4614.8,0.2023]
[1758219341360,0.21502452,4614.9,4614.8,0.7258]
[1758219341562,0.8262,4615.5,4615.4,0.2023]
[1758219341860,1.04117117,4615.5,4615.4,0.2023]
[1758219343460,1.04117117,4615.5,4615.1,0.219]
[1758219343765,0.7098,4615.2,4615.1,0.219]
[1758219343962,0.92477117,4615.2,4615.1,0.219]
[1758219346156,0.7098,4615.2,4615.1,0.219]
[1758219348470,0.1253,4615.0,4614.8,3.2078]
[1758219348870,0.7098,4614.9,4614.8,3.2078]
[1758219349163,0.7098,4614.9,4614.8,3.4101]
[1758219349369,0.7098,4614.9,4614.8,3.2078]
[1758219350466,0.7098,4614.9,4614.7,0.219]
[1758219350674,0.7098,4614.2,4614.1,3.4317]
[1758219350866,0.7098,4614.2,4614.1,3.854]
[1758219351173,0.6236,4614.5,4614.4,0.7258]
[1758219351364,0.8351,4614.5,4614.4,0.6256]
[1758219353082,0.8351,4614.5,4614.4,0.4213]
[1758219353968,0.8351,4614.5,4614.4,0.6254]
[1758219354277,0.8351,4614.5,4614.4,0.9383]
[1758219355173,0.4983,4614.5,4614.4,0.9383]
[1758219355573,0.6169,4614.5,4614.4,0.9383]
[1758219355773,0.8242,4614.5,4614.4,0.9383]
[1758219356178,1.04176055,4614.5,4614.4,0.9383]
[1758219356577,1.0417469,4614.5,4614.4,0.9383]
[1758219361184,0.5221469,4614.5,4614.4,0.9383]
[1758219361383,0.3098,4615.0,4614.9,0.7128]
[1758219361689,0.52750859,4615.0,4614.9,0.9308]
[1758219362187,0.21770859,4615.0,4614.9,0.9308]
[1758219366084,0.4185,4615.5,4615.0,0.3182]
[1758219366387,0.8254,4615.5,4615.4,0.3963]
[1758219366586,1.04319691,4615.5,4615.4,0.3963]
[1758219366988,1.04319691,4615.5,4615.4,0.7145]
[1758219367383,0.51989691,4615.5,4615.4,0.7145]
[1758219368084,0.92679691,4615.5,4615.4,0.7145]
[1758219368289,1.05429691,4615.5,4615.4,0.7145]
[1758219370089,1.05429691,4615.5,4615.4,0.3963]
[1758219371793,1.05429691,4615.5,4615.4,0.7145]
[1758219373595,1.05429691,4615.5,4615.4,0.3963]
[1758219373791,1.05425098,4615.5,4615.4,0.3963]
[1758219373993,1.05425098,4615.5,4615.4,0.7145]
[1758219374192,0.3021,4615.5,4615.4,0.7145]
[1758219374696,0.3021,4615.9,4615.8,0.7145]
[1758219374897,0.72431981,4615.9,4615.8,0.7145]
[1758219375097,0.92671981,4615.9,4615.8,0.7145]
[1758219375786,0.92671981,4615.9,4615.8,0.3963]
[1758219377302,0.2045,4615.2,4615.1,3.9223]
[1758219377502,0.709,4615.2,4615.1,3.8221]
[1758219378599,0.709,4615.2,4615.1,3.6261]
[1758219379005,0.3021,4615.2,4615.1,4.1403]
[1758219379599,0.5066,4615.2,4615.1,4.1403]
[1758219380204,0.3021,4615.4,4615.2,0.3182]
[1758219380508,0.5066,4615.9,4615.8,0.7145]
[1758219380706,0.92657437,4615.9,4615.8,0.9325]
[1758219381601,0.92657437,4615.9,4615.8,0.6143]
[1758219382510,0.92657437,4615.9,4615.8,0.9325]
[1758219383303,0.72417437,4615.9,4615.8,0.9325]
[1758219383609,0.709,4615.9,4615.8,0.9325]
[1758219384205,0.5066,4615.9,4615.8,0.9325]
[1758219384407,0.709,4615.9,4615.8,0.9325]
[1758219384807,0.709,4615.9,4615.8,0.6143]
[1758219386002,0.709,4615.9,4615.8,0.9325]
[1758219386202,0.92652149,4615.9,4615.8,0.9325]
[1758219386810,0.72412149,4615.9,4615.8,0.9325]
[1758219387112,0.3021,4615.9,4615.8,0.9325]
[1758219387703,0.3021,4616.2,4615.9,0.3182]
[1758219387905,0.5066,4616.2,4616.1,0.7145]
[1758219388113,0.5066,4616.2,4616.1,0.9325]
[1758219388611,0.709,4616.2,4616.1,0.9325]
[1758219389605,0.92656726,4616.2,4616.1,0.218]
[1758219389905,0.709,4615.8,4615.7,3.4081]
[1758219390100,0.709,4615.8,4615.7,3.4258]
[1758219390305,0.709,4615.8,4615.7,0.218]
[1758219390306,0.92659216,4615.8,4615.7,0.218]
[1758219393510,0.92669647,4615.8,4615.7,0.218]
[1758219394912,0.92669647,4615.8,4615.6,0.0216]
[1758219395113,0.92669647,4615.7,4615.6,0.0216]
[1758219395509,0.7187,4615.3,4615.2,0.218]
[1758219395802,0.93639647,4615.3,4615.2,0.218]
[1758219396411,0.3118,4615.2,4614.9,0.402]
[1758219396614,0.3118,4615.2,4615.1,0.9385]
[1758219396915,0.94153622,4615.2,4615.1,0.9385]
[1758219397109,0.94153622,4615.2,4615.1,0.218]
[1758219397508,0.94153622,4615.2,4615.1,0.9385]
[1758219397913,0.52953622,4615.2,4615.1,0.9385]
[1758219398314,0.73283622,4615.2,4615.1,0.9385]
[1758219398514,0.94153622,4615.2,4615.1,0.62]
[1758219399316,0.52953622,4615.2,4615.1,0.9385]
[1758219399616,0.5151,4615.9,4615.8,0.7205]
[1758219399815,0.73282967,4615.9,4615.8,0.7205]
[1758219400115,0.52952967,4615.9,4615.8,0.7205]
[1758219400710,0.73282967,4615.9,4615.8,0.7205]
[1758219400912,0.94152967,4615.9,4615.8,0.7205]
[1758219401214,0.94152967,4615.9,4615.8,0.402]
[1758219401608,0.94152967,4615.9,4615.8,0.7205]
[1758219402715,0.94152967,4615.9,4615.6,0.218]
[1758219402916,0.7238,4615.7,4615.6,0.4274]
[1758219403115,0.73282967,4615.7,4615.6,0.9385]